[Event "Early-Titled-Tuesday-Blitz-October-24-2023"]
[Site "Chess.com"]
[Date "2023.10.24"]
[Round "3"]
[White "GroovyKettle"]
[Black "Daffidollchess2"]
[Result "1-0"]
[WhiteElo "2973"]
[BlackElo "2702"]
[TimeControl "180+1"]
[EndTime "8:26:41 PDT"]
[Termination "GroovyKettle won by resignation"]

1. e4 {[%clk 0:03:00.9]} 1... c5 {[%clk 0:02:56.6]} 2. Nf3 {[%clk 0:03:00.8]}
2... Nc6 {[%clk 0:02:56.5]} 3. d4 {[%clk 0:03:01.2]} 3... cxd4 {[%clk
0:02:56.7]} 4. Nxd4 {[%clk 0:03:02.1]} 4... Qc7 {[%clk 0:02:57]} 5. Nc3 {[%clk
0:03:01.1]} 5... e6 {[%clk 0:02:57.4]} 6. f4 {[%clk 0:02:59.4]} 6... a6 {[%clk
0:02:47.8]} 7. Nxc6 {[%clk 0:02:59]} 7... Qxc6 {[%clk 0:02:41.8]} 8. Bd3 {[%clk
0:02:59.2]} 8... b5 {[%clk 0:02:41.7]} 9. Qe2 {[%clk 0:02:59.8]} 9... Bb7 {[%clk
0:02:42]} 10. Bd2 {[%clk 0:03:00.3]} 10... b4 {[%clk 0:02:36.8]} 11. Nd5 {[%clk
0:03:00]} 11... Nf6 {[%clk 0:02:21.6]} 12. Nxf6+ {[%clk 0:02:39.9]} 12... gxf6
{[%clk 0:02:21.5]} 13. O-O-O {[%clk 0:02:37.3]} 13... Be7 {[%clk 0:02:11.6]} 14.
g4 {[%clk 0:02:37.4]} 14... Rc8 {[%clk 0:02:06.4]} 15. Kb1 {[%clk 0:02:37.4]}
15... a5 {[%clk 0:02:05.3]} 16. h4 {[%clk 0:02:37.7]} 16... a4 {[%clk
0:02:04.6]} 17. g5 {[%clk 0:02:37]} 17... a3 {[%clk 0:01:57.3]} 18. b3 {[%clk
0:02:37]} 18... Qb6 {[%clk 0:01:52.9]} 19. Bc1 {[%clk 0:02:14.1]} 19... Qc5
{[%clk 0:01:32]} 20. Rh2 {[%clk 0:01:57]} 20... Qc3 {[%clk 0:01:01.9]} 21. Bb5
{[%clk 0:01:47.1]} 21... Bc6 {[%clk 0:00:59.4]} 22. Bxc6 {[%clk 0:01:38.9]}
22... Rxc6 {[%clk 0:00:56.9]} 23. gxf6 {[%clk 0:01:39.5]} 23... Bxf6 {[%clk
0:00:55.3]} 24. e5 {[%clk 0:01:39.9]} 24... Be7 {[%clk 0:00:55.9]} 25. Rd3
{[%clk 0:01:35.4]} 25... Qc5 {[%clk 0:00:51.8]} 26. Qg4 {[%clk 0:01:32.7]} 26...
h5 {[%clk 0:00:45.3]} 27. Qg7 {[%clk 0:01:31.2]} 27... Rf8 {[%clk 0:00:44.9]}
28. Rhd2 {[%clk 0:01:28.6]} 28... Rc7 {[%clk 0:00:30]} 29. Qh7 {[%clk
0:01:25.6]} 29... f6 {[%clk 0:00:17]} 30. Qxh5+ {[%clk 0:01:23.4]} 30... Kd8
{[%clk 0:00:17.4]} 31. Qg4 {[%clk 0:01:17.8]} 31... Kc8 {[%clk 0:00:15.8]} 32.
Rd4 {[%clk 0:01:02]} 32... fxe5 {[%clk 0:00:15.7]} 33. Rc4 {[%clk 0:01:02.2]}
33... Qb6 {[%clk 0:00:15.2]} 34. fxe5 {[%clk 0:01:01.8]} 34... Rf1 {[%clk
0:00:14.3]} 35. Rdd4 {[%clk 0:00:55.3]} 35... Kb8 {[%clk 0:00:12.3]} 36. Rxb4
{[%clk 0:00:51.1]} 36... Bxb4 {[%clk 0:00:12.2]} 37. Rxb4 {[%clk 0:00:51.5]} 1-0

[Event "Early-Titled-Tuesday-Blitz-October-24-2023"]
[Site "Chess.com"]
[Date "2023.10.24"]
[Round "3"]
[White "Slovak_fighter2000"]
[Black "FREDERICKtheMATE"]
[Result "1/2-1/2"]
[WhiteElo "2431"]
[BlackElo "2587"]
[TimeControl "180+1"]
[EndTime "8:26:41 PDT"]
[Termination "Game drawn by repetition"]

1. d4 {[%clk 0:03:00.9]} 1... Nf6 {[%clk 0:02:59.4]} 2. Nf3 {[%clk 0:02:58.7]}
2... e6 {[%clk 0:02:59.5]} 3. Bg5 {[%clk 0:02:54.3]} 3... d5 {[%clk 0:02:59.4]}
4. e3 {[%clk 0:02:54.1]} 4... Be7 {[%clk 0:02:59.6]} 5. c4 {[%clk 0:02:49.7]}
5... O-O {[%clk 0:02:58.6]} 6. Nc3 {[%clk 0:02:49.7]} 6... Nbd7 {[%clk
0:02:57.2]} 7. Qc2 {[%clk 0:02:48.3]} 7... h6 {[%clk 0:02:56.5]} 8. Bh4 {[%clk
0:02:47.4]} 8... c6 {[%clk 0:02:46.9]} 9. cxd5 {[%clk 0:02:44.1]} 9... cxd5
{[%clk 0:02:44.4]} 10. Bd3 {[%clk 0:02:43.1]} 10... a6 {[%clk 0:02:43.3]} 11.
O-O {[%clk 0:02:42.4]} 11... b5 {[%clk 0:02:42.9]} 12. Rac1 {[%clk 0:02:41.8]}
12... Bb7 {[%clk 0:02:42.3]} 13. Ne5 {[%clk 0:02:39.8]} 13... Nxe5 {[%clk
0:02:36.6]} 14. dxe5 {[%clk 0:02:39.1]} 14... Nd7 {[%clk 0:02:36]} 15. Bg3
{[%clk 0:02:37.6]} 15... Rc8 {[%clk 0:02:30.6]} 16. Qd2 {[%clk 0:02:31.4]} 16...
Nc5 {[%clk 0:02:27.7]} 17. Bb1 {[%clk 0:02:30.3]} 17... b4 {[%clk 0:02:20.4]}
18. Ne2 {[%clk 0:02:28.3]} 18... Ne4 {[%clk 0:02:16.6]} 19. Qd3 {[%clk
0:02:25.9]} 19... g6 {[%clk 0:02:15.2]} 20. Nd4 {[%clk 0:02:19.2]} 20... Qb6
{[%clk 0:02:12.9]} 21. f3 {[%clk 0:02:17.2]} 21... Nxg3 {[%clk 0:02:10.4]} 22.
hxg3 {[%clk 0:02:18.1]} 22... a5 {[%clk 0:02:10.7]} 23. Qd2 {[%clk 0:02:11.2]}
23... Ba6 {[%clk 0:02:09.7]} 24. Rxc8 {[%clk 0:02:10.6]} 24... Rxc8 {[%clk
0:02:09.2]} 25. Rc1 {[%clk 0:02:11.2]} 25... Rc4 {[%clk 0:02:07.5]} 26. b3
{[%clk 0:02:09.8]} 26... Rc5 {[%clk 0:02:05.6]} 27. Rxc5 {[%clk 0:02:07.9]}
27... Qxc5 {[%clk 0:02:06.5]} 28. Bd3 {[%clk 0:02:04.4]} 28... Bxd3 {[%clk
0:01:56.2]} 29. Qxd3 {[%clk 0:02:05.3]} 29... Qc1+ {[%clk 0:01:56]} 30. Kh2
{[%clk 0:02:04.6]} 30... Qb2 {[%clk 0:01:55.1]} 31. Qc2 {[%clk 0:02:02.7]} 31...
Qxc2 {[%clk 0:01:49]} 32. Nxc2 {[%clk 0:02:02]} 32... Bc5 {[%clk 0:01:49.3]} 33.
Nd4 {[%clk 0:02:01.2]} 33... Bxd4 {[%clk 0:01:46.7]} 34. exd4 {[%clk 0:02:02.1]}
34... g5 {[%clk 0:01:45.8]} 35. g4 {[%clk 0:02:02]} 35... Kg7 {[%clk 0:01:45.5]}
36. g3 {[%clk 0:02:01]} 36... Kg6 {[%clk 0:01:41.5]} 37. f4 {[%clk 0:02:01.3]}
37... h5 {[%clk 0:01:39.4]} 38. Kh3 {[%clk 0:01:59.5]} 38... Kh6 {[%clk
0:01:17]} 39. f5 {[%clk 0:01:46]} 39... exf5 {[%clk 0:01:09.3]} 40. gxf5 {[%clk
0:01:45.9]} 40... Kg7 {[%clk 0:01:08.4]} 41. g4 {[%clk 0:01:44.2]} 41... h4
{[%clk 0:01:04.1]} 42. Kg2 {[%clk 0:01:43.9]} 42... Kh6 {[%clk 0:01:03.7]} 43.
Kh3 {[%clk 0:01:43.8]} 43... Kg7 {[%clk 0:01:03.7]} 44. Kg2 {[%clk 0:01:44.3]}
44... f6 {[%clk 0:01:03.7]} 45. e6 {[%clk 0:01:42.9]} 45... Kf8 {[%clk
0:01:03.3]} 46. Kh3 {[%clk 0:01:43.1]} 46... Ke7 {[%clk 0:01:03.6]} 47. Kg2
{[%clk 0:01:43.8]} 47... Kd6 {[%clk 0:01:03.8]} 48. Kh3 {[%clk 0:01:44.4]} 48...
Kc7 {[%clk 0:01:04.2]} 49. Kg2 {[%clk 0:01:45]} 49... Kc6 {[%clk 0:01:04.7]} 50.
Kh3 {[%clk 0:01:45.6]} 50... Kd6 {[%clk 0:01:05.2]} 51. Kg2 {[%clk 0:01:45.9]}
51... Ke7 {[%clk 0:01:05.7]} 52. Kh3 {[%clk 0:01:46.2]} 52... Kd8 {[%clk
0:01:06.1]} 53. Kg2 {[%clk 0:01:46.8]} 53... Ke8 {[%clk 0:01:06.7]} 54. Kh3
{[%clk 0:01:47.3]} 54... Kf8 {[%clk 0:01:07.3]} 55. Kg2 {[%clk 0:01:47.8]} 55...
Ke7 {[%clk 0:01:07.6]} 56. Kh3 {[%clk 0:01:48.4]} 56... Kd8 {[%clk 0:01:08]} 57.
Kg2 {[%clk 0:01:49]} 57... Kc7 {[%clk 0:01:08.3]} 58. Kh3 {[%clk 0:01:49.7]}
58... Kc8 {[%clk 0:01:08.6]} 59. Kg2 {[%clk 0:01:45.4]} 59... Kc7 {[%clk
0:01:08.2]} 60. Kh2 {[%clk 0:01:46.3]} 60... Kc6 {[%clk 0:01:08.3]} 61. e7
{[%clk 0:01:46.9]} 61... Kd7 {[%clk 0:01:08.2]} 62. Kh3 {[%clk 0:01:47.5]} 62...
Kxe7 {[%clk 0:01:07.5]} 63. Kg2 {[%clk 0:01:48.4]} 63... Kd6 {[%clk 0:01:06.8]}
64. Kh3 {[%clk 0:01:49]} 64... Kc6 {[%clk 0:01:07.3]} 65. Kg2 {[%clk 0:01:49.3]}
65... Kb5 {[%clk 0:01:07.7]} 66. Kh3 {[%clk 0:01:49.7]} 66... Kc6 {[%clk
0:01:07.3]} 67. Kg2 {[%clk 0:01:49.9]} 67... a4 {[%clk 0:01:07.9]} 68. Kh3
{[%clk 0:01:49.9]} 68... Kd6 {[%clk 0:01:06]} 69. Kg2 {[%clk 0:01:49.8]} 69...
Ke7 {[%clk 0:01:02.9]} 70. Kh3 {[%clk 0:01:50.1]} 70... Ke8 {[%clk 0:01:00.4]}
71. Kg2 {[%clk 0:01:49.7]} 71... Kd7 {[%clk 0:01:00.3]} 72. Kh3 {[%clk
0:01:49.7]} 72... Kc6 {[%clk 0:01:00.7]} 73. Kg2 {[%clk 0:01:49.8]} 73... Kb5
{[%clk 0:01:01.2]} 74. Kh3 {[%clk 0:01:50.1]} 74... axb3 {[%clk 0:01:01.6]} 75.
axb3 {[%clk 0:01:50]} 75... Ka5 {[%clk 0:01:01.8]} 76. Kg2 {[%clk 0:01:49.6]}
76... Kb6 {[%clk 0:01:02.7]} 77. Kh3 {[%clk 0:01:50.5]} 77... Kb5 {[%clk
0:01:03.4]} 78. Kg2 {[%clk 0:01:51.2]} 78... Kc6 {[%clk 0:01:04.3]} 79. Kh3
{[%clk 0:01:52.1]} 79... Kc7 {[%clk 0:01:05]} 80. Kg2 {[%clk 0:01:53]} 80... Kb7
{[%clk 0:01:05.9]} 81. Kh3 {[%clk 0:01:53.9]} 81... Kb8 {[%clk 0:01:06.6]} 82.
Kg2 {[%clk 0:01:54.8]} 82... Kc8 {[%clk 0:01:07.5]} 83. Kh3 {[%clk 0:01:55.7]}
83... Kb7 {[%clk 0:01:08.3]} 84. Kg2 {[%clk 0:01:56.6]} 84... Ka7 {[%clk
0:01:09.2]} 85. Kh3 {[%clk 0:01:57.5]} 85... Kb6 {[%clk 0:01:09.7]} 86. Kg2
{[%clk 0:01:58.4]} 86... Kc6 {[%clk 0:01:10.6]} 87. Kh3 {[%clk 0:01:59.3]} 87...
Kd7 {[%clk 0:01:11.3]} 88. Kg2 {[%clk 0:02:00.1]} 88... Kd6 {[%clk 0:01:12]} 89.
Kh3 {[%clk 0:02:01]} 89... Ke7 {[%clk 0:01:12.7]} 90. Kg2 {[%clk 0:02:01.9]}
90... Kf7 {[%clk 0:01:13.3]} 91. Kh3 {[%clk 0:02:02.8]} 91... Kg7 {[%clk
0:01:14]} 92. Kg2 {[%clk 0:02:03.7]} 92... Kh6 {[%clk 0:01:14.5]} 93. Kh3 {[%clk
0:02:04.6]} 93... Kh7 {[%clk 0:01:15.4]} 94. Kg2 {[%clk 0:02:05.5]} 94... Kh8
{[%clk 0:01:16.2]} 95. Kh3 {[%clk 0:02:06.4]} 95... Kg8 {[%clk 0:01:17.1]} 96.
Kg2 {[%clk 0:02:07.2]} 96... Kg7 {[%clk 0:01:18]} 97. Kh3 {[%clk 0:02:08]} 97...
Kf8 {[%clk 0:01:16.8]} 98. Kg2 {[%clk 0:02:08.9]} 98... Kf7 {[%clk 0:01:17.6]}
99. Kh3 {[%clk 0:02:09.8]} 99... Kg7 {[%clk 0:01:18.2]} 100. Kg2 {[%clk
0:02:10.7]} 100... Kh6 {[%clk 0:01:18.9]} 101. Kh3 {[%clk 0:02:11.6]} 101... Kh7
{[%clk 0:01:19.6]} 102. Kg2 {[%clk 0:02:12.5]} 102... Kg7 {[%clk 0:01:20.3]}
103. Kh3 {[%clk 0:02:13.4]} 103... Kh8 {[%clk 0:01:21]} 104. Kg2 {[%clk
0:02:14.3]} 104... Kg8 {[%clk 0:01:21.7]} 105. Kh3 {[%clk 0:02:15.2]} 105... Kf7
{[%clk 0:01:22.4]} 106. Kg2 {[%clk 0:02:16.1]} 106... Ke7 {[%clk 0:01:23.3]}
107. Kh3 {[%clk 0:02:17]} 107... Kd6 {[%clk 0:01:23.5]} 108. Kg2 {[%clk
0:02:17.9]} 108... Kc6 {[%clk 0:01:24.3]} 1/2-1/2

[Event "Early-Titled-Tuesday-Blitz-October-24-2023"]
[Site "Chess.com"]
[Date "2023.10.24"]
[Round "3"]
[White "oggy1984"]
[Black "Dacean99"]
[Result "0-1"]
[WhiteElo "2436"]
[BlackElo "2612"]
[TimeControl "180+1"]
[EndTime "8:26:42 PDT"]
[Termination "Dacean99 won on time"]

1. d4 {[%clk 0:03:00.9]} 1... d5 {[%clk 0:02:56.9]} 2. c4 {[%clk 0:03:00.7]}
2... dxc4 {[%clk 0:02:53.8]} 3. e4 {[%clk 0:03:00.2]} 3... e5 {[%clk 0:02:53.1]}
4. Nf3 {[%clk 0:02:59.6]} 4... exd4 {[%clk 0:02:52.9]} 5. Bxc4 {[%clk
0:02:59.3]} 5... Nf6 {[%clk 0:02:32.8]} 6. e5 {[%clk 0:02:56.6]} 6... Ne4 {[%clk
0:02:25.6]} 7. O-O {[%clk 0:02:49.2]} 7... Be7 {[%clk 0:02:21.1]} 8. Nxd4 {[%clk
0:02:35.7]} 8... O-O {[%clk 0:02:18.5]} 9. Be3 {[%clk 0:02:25.4]} 9... Nc6
{[%clk 0:02:13.3]} 10. Nxc6 {[%clk 0:02:22.6]} 10... bxc6 {[%clk 0:02:14.2]} 11.
Qf3 {[%clk 0:02:12.5]} 11... Ng5 {[%clk 0:02:11]} 12. Qxc6 {[%clk 0:02:02.4]}
12... Bd7 {[%clk 0:02:09.2]} 13. Qd5 {[%clk 0:01:50.1]} 13... c6 {[%clk
0:02:04.5]} 14. Qd1 {[%clk 0:01:35.4]} 14... Rb8 {[%clk 0:01:57.2]} 15. b3
{[%clk 0:01:19.9]} 15... Qc7 {[%clk 0:01:48.6]} 16. f4 {[%clk 0:01:17.4]} 16...
Ne4 {[%clk 0:01:43.5]} 17. Nd2 {[%clk 0:01:15]} 17... Nxd2 {[%clk 0:01:30]} 18.
Qxd2 {[%clk 0:01:12.9]} 18... Rbd8 {[%clk 0:01:28.2]} 19. Qf2 {[%clk 0:01:11.4]}
19... Bg4 {[%clk 0:01:11.3]} 20. h3 {[%clk 0:01:03.8]} 20... Bf5 {[%clk
0:01:10.5]} 21. Rac1 {[%clk 0:00:54.6]} 21... Bb4 {[%clk 0:01:08.9]} 22. g4
{[%clk 0:00:47.7]} 22... Be4 {[%clk 0:01:08.5]} 23. Rfd1 {[%clk 0:00:28.2]}
23... Ba3 {[%clk 0:01:07.9]} 24. Rxd8 {[%clk 0:00:24]} 24... Rxd8 {[%clk
0:01:08.8]} 25. Re1 {[%clk 0:00:20.6]} 25... Bb4 {[%clk 0:01:06.3]} 26. Rf1
{[%clk 0:00:17.7]} 26... Bd3 {[%clk 0:01:03]} 27. Rd1 {[%clk 0:00:13.1]} 27...
Be4 {[%clk 0:00:57.5]} 28. Rxd8+ {[%clk 0:00:14]} 28... Qxd8 {[%clk 0:00:57.5]}
29. Be2 {[%clk 0:00:08.5]} 29... a5 {[%clk 0:00:54.9]} 30. Bc5 {[%clk
0:00:06.3]} 30... Bxc5 {[%clk 0:00:52.5]} 31. Qxc5 {[%clk 0:00:07.2]} 31... Qd2
{[%clk 0:00:52.7]} 32. Qd6 {[%clk 0:00:03.4]} 32... Qe1+ {[%clk 0:00:50.6]} 33.
Bf1 {[%clk 0:00:02.8]} 33... Qg3+ {[%clk 0:00:50.9]} 0-1

[Event "Early-Titled-Tuesday-Blitz-October-24-2023"]
[Site "Chess.com"]
[Date "2023.10.24"]
[Round "3"]
[White "FoxOnTheRun97"]
[Black "IngOscarArdila"]
[Result "1-0"]
[WhiteElo "2547"]
[BlackElo "2311"]
[TimeControl "180+1"]
[EndTime "8:26:47 PDT"]
[Termination "FoxOnTheRun97 won on time"]

1. d4 {[%clk 0:03:00.3]} 1... Nf6 {[%clk 0:02:59.5]} 2. Bg5 {[%clk 0:03:00]}
2... e6 {[%clk 0:02:59.7]} 3. Nd2 {[%clk 0:03:00.3]} 3... h6 {[%clk 0:02:59.3]}
4. Bh4 {[%clk 0:02:50.8]} 4... b6 {[%clk 0:02:57.4]} 5. e3 {[%clk 0:02:48.7]}
5... Bb7 {[%clk 0:02:57.1]} 6. f4 {[%clk 0:02:48.5]} 6... Be7 {[%clk 0:02:56.8]}
7. Ngf3 {[%clk 0:02:48.3]} 7... d6 {[%clk 0:02:56.9]} 8. Bd3 {[%clk 0:02:48.4]}
8... Nbd7 {[%clk 0:02:57]} 9. O-O {[%clk 0:02:46.4]} 9... Ng4 {[%clk 0:02:54.9]}
10. Bxe7 {[%clk 0:02:44.3]} 10... Qxe7 {[%clk 0:02:54.9]} 11. Qe2 {[%clk
0:02:37.5]} 11... O-O {[%clk 0:02:50.2]} 12. h3 {[%clk 0:02:27.7]} 12... Ngf6
{[%clk 0:02:46.2]} 13. e4 {[%clk 0:02:27.9]} 13... e5 {[%clk 0:02:42.4]} 14. c3
{[%clk 0:02:16.7]} 14... c5 {[%clk 0:02:41.8]} 15. fxe5 {[%clk 0:02:13.5]} 15...
dxe5 {[%clk 0:02:41.4]} 16. d5 {[%clk 0:02:13.4]} 16... Ne8 {[%clk 0:02:39.6]}
17. g4 {[%clk 0:02:06.6]} 17... Nd6 {[%clk 0:02:38.4]} 18. a4 {[%clk 0:02:03.6]}
18... a5 {[%clk 0:00:04.1]} 19. Rf2 {[%clk 0:01:58.2]} 19... Rfe8 {[%clk
0:00:04.2]} 20. Nf1 {[%clk 0:01:50.6]} 20... f6 {[%clk 0:00:04.7]} 21. Nh4
{[%clk 0:01:46.6]} 21... Nf8 {[%clk 0:00:05.6]} 22. Nf5 {[%clk 0:01:44.9]} 22...
Nxf5 {[%clk 0:00:04.8]} 23. gxf5 {[%clk 0:01:44.9]} 23... Red8 {[%clk
0:00:05.1]} 24. Rg2 {[%clk 0:01:41.7]} 24... Kh8 {[%clk 0:00:05.2]} 25. Ng3
{[%clk 0:01:39.4]} 25... Nd7 {[%clk 0:00:05.2]} 26. Nh5 {[%clk 0:01:38.6]} 26...
Rg8 {[%clk 0:00:05.9]} 27. Kh2 {[%clk 0:01:26.2]} 27... c4 {[%clk 0:00:05.5]}
28. Bc2 {[%clk 0:01:15.3]} 28... Nc5 {[%clk 0:00:05.5]} 29. Rag1 {[%clk
0:01:14.4]} 29... Nd3 {[%clk 0:00:01.7]} 30. Rxg7 {[%clk 0:01:00.7]} 30... Rxg7
{[%clk 0:00:02.4]} 31. Rxg7 {[%clk 0:01:01.2]} 31... Qc5 {[%clk 0:00:02.3]} 32.
Bxd3 {[%clk 0:00:55.2]} 32... cxd3 {[%clk 0:00:03.2]} 33. Qd2 {[%clk 0:00:50.1]}
1-0

[Event "Early-Titled-Tuesday-Blitz-October-24-2023"]
[Site "Chess.com"]
[Date "2023.10.24"]
[Round "3"]
[White "NowInChess"]
[Black "Savagelittlemole"]
[Result "0-1"]
[WhiteElo "2241"]
[BlackElo "2512"]
[TimeControl "180+1"]
[EndTime "8:26:49 PDT"]
[Termination "Savagelittlemole won on time"]

1. e4 {[%clk 0:03:00.9]} 1... c5 {[%clk 0:02:59.7]} 2. d3 {[%clk 0:03:00.7]}
2... d6 {[%clk 0:03:00.3]} 3. g3 {[%clk 0:03:01.1]} 3... g6 {[%clk 0:03:00.5]}
4. Bg2 {[%clk 0:03:01.6]} 4... Bg7 {[%clk 0:03:01.3]} 5. f4 {[%clk 0:03:02.1]}
5... Nc6 {[%clk 0:03:01.7]} 6. Nf3 {[%clk 0:03:02.6]} 6... e6 {[%clk 0:03:02.2]}
7. O-O {[%clk 0:03:01.7]} 7... Nge7 {[%clk 0:03:02.7]} 8. c3 {[%clk 0:03:02.2]}
8... O-O {[%clk 0:03:03.2]} 9. Be3 {[%clk 0:03:02.7]} 9... Qc7 {[%clk
0:02:59.9]} 10. d4 {[%clk 0:03:02.4]} 10... cxd4 {[%clk 0:02:58.9]} 11. cxd4
{[%clk 0:03:03.3]} 11... d5 {[%clk 0:02:59.3]} 12. e5 {[%clk 0:03:03.1]} 12...
Nf5 {[%clk 0:02:58.5]} 13. Bf2 {[%clk 0:03:03.3]} 13... h5 {[%clk 0:02:58.7]}
14. Nc3 {[%clk 0:03:02.6]} 14... a6 {[%clk 0:02:58.6]} 15. h3 {[%clk 0:02:58.1]}
15... b5 {[%clk 0:02:57.9]} 16. Rc1 {[%clk 0:02:54]} 16... Bd7 {[%clk
0:02:51.4]} 17. g4 {[%clk 0:02:50.6]} 17... hxg4 {[%clk 0:02:51.1]} 18. hxg4
{[%clk 0:02:51.5]} 18... Nh6 {[%clk 0:02:50.4]} 19. Bh3 {[%clk 0:02:48.2]} 19...
Qd8 {[%clk 0:02:46.9]} 20. Qd2 {[%clk 0:02:21.8]} 20... b4 {[%clk 0:02:46.3]}
21. Na4 {[%clk 0:01:57.6]} 21... Nxd4 {[%clk 0:02:46]} 22. Nxd4 {[%clk
0:01:52.2]} 22... Bxa4 {[%clk 0:02:45.9]} 23. Qxb4 {[%clk 0:01:47.6]} 23... Bb5
{[%clk 0:02:44.8]} 24. Nxb5 {[%clk 0:01:41]} 24... axb5 {[%clk 0:02:45.7]} 25.
Qxb5 {[%clk 0:01:33.3]} 25... Rxa2 {[%clk 0:02:34]} 26. Bc5 {[%clk 0:01:16.3]}
26... Qh4 {[%clk 0:02:30.3]} 27. Qb3 {[%clk 0:01:04.6]} 27... Rfa8 {[%clk
0:02:14.6]} 28. Ba3 {[%clk 0:00:43.9]} 28... Nxg4 {[%clk 0:02:03.3]} 29. Rf3
{[%clk 0:00:27.9]} 29... R8xa3 {[%clk 0:01:13.8]} 30. bxa3 {[%clk 0:00:28.8]}
30... Rh2 {[%clk 0:01:06.4]} 31. a4 {[%clk 0:00:08.5]} 31... Bh6 {[%clk
0:01:00.3]} 32. a5 {[%clk 0:00:07.6]} 32... Bxf4 {[%clk 0:00:59.6]} 33. a6
{[%clk 0:00:06.6]} 33... Bxc1 {[%clk 0:00:47.3]} 34. a7 {[%clk 0:00:04.7]} 34...
Be3+ {[%clk 0:00:47.7]} 35. Kf1 {[%clk 0:00:03.2]} 35... Bxa7 {[%clk 0:00:46.8]}
0-1

[Event "Early-Titled-Tuesday-Blitz-October-24-2023"]
[Site "Chess.com"]
[Date "2023.10.24"]
[Round "3"]
[White "cthulhuuu"]
[Black "balachess2006"]
[Result "1-0"]
[WhiteElo "2406"]
[BlackElo "2558"]
[TimeControl "180+1"]
[EndTime "8:26:51 PDT"]
[Termination "cthulhuuu won by checkmate"]

1. e4 {[%clk 0:03:00.1]} 1... c5 {[%clk 0:02:55.4]} 2. Nf3 {[%clk 0:03:00.3]}
2... Nc6 {[%clk 0:02:55.2]} 3. g3 {[%clk 0:03:00.5]} 3... g6 {[%clk 0:02:55.4]}
4. Bg2 {[%clk 0:03:01.1]} 4... Bg7 {[%clk 0:02:56]} 5. O-O {[%clk 0:03:01.7]}
5... e5 {[%clk 0:02:55.3]} 6. d3 {[%clk 0:03:01.6]} 6... Nge7 {[%clk 0:02:55.6]}
7. Nc3 {[%clk 0:03:02.1]} 7... O-O {[%clk 0:02:55]} 8. Nd2 {[%clk 0:03:02.9]}
8... d6 {[%clk 0:02:51.9]} 9. Nc4 {[%clk 0:03:03.5]} 9... Nd4 {[%clk 0:02:48.3]}
10. a4 {[%clk 0:03:02.7]} 10... Be6 {[%clk 0:02:41.8]} 11. Nd5 {[%clk 0:03:03]}
11... Nxd5 {[%clk 0:02:39.1]} 12. exd5 {[%clk 0:03:03.9]} 12... Bd7 {[%clk
0:02:39.5]} 13. c3 {[%clk 0:03:04.1]} 13... Nf5 {[%clk 0:02:39]} 14. f4 {[%clk
0:03:03.1]} 14... b5 {[%clk 0:02:33.7]} 15. axb5 {[%clk 0:02:59.6]} 15... Bxb5
{[%clk 0:02:34.6]} 16. Be4 {[%clk 0:02:41.8]} 16... Ne7 {[%clk 0:01:41.9]} 17.
f5 {[%clk 0:02:42.1]} 17... gxf5 {[%clk 0:01:41.1]} 18. Bxf5 {[%clk 0:02:42.4]}
18... Nxf5 {[%clk 0:01:41.7]} 19. Rxf5 {[%clk 0:02:42.3]} 19... Bd7 {[%clk
0:01:40.7]} 20. Nxd6 {[%clk 0:02:01]} 20... Qe7 {[%clk 0:01:38.9]} 21. Ra6
{[%clk 0:01:30.4]} 21... c4 {[%clk 0:01:07.6]} 22. dxc4 {[%clk 0:01:03.7]} 22...
Bxf5 {[%clk 0:01:06.3]} 23. Nxf5 {[%clk 0:01:04.6]} 23... Qc5+ {[%clk
0:01:06.9]} 24. Be3 {[%clk 0:01:05.3]} 24... Qxc4 {[%clk 0:01:05.1]} 25. Rc6
{[%clk 0:01:01.7]} 25... Qe4 {[%clk 0:01:01.1]} 26. Qh5 {[%clk 0:00:53.4]} 26...
Kh8 {[%clk 0:00:14.5]} 27. Bh6 {[%clk 0:00:40.6]} 27... Bxh6 {[%clk 0:00:09.6]}
28. Rxh6 {[%clk 0:00:40.8]} 28... Qe1+ {[%clk 0:00:05.3]} 29. Kg2 {[%clk
0:00:40.8]} 29... Qd2+ {[%clk 0:00:05.7]} 30. Kh3 {[%clk 0:00:41]} 30... Qxh6
{[%clk 0:00:05.8]} 31. Qxh6 {[%clk 0:00:39.5]} 31... Rg8 {[%clk 0:00:06.7]} 32.
Qf6+ {[%clk 0:00:39.8]} 32... Rg7 {[%clk 0:00:06.6]} 33. Qxg7# {[%clk
0:00:40.7]} 1-0

[Event "Early-Titled-Tuesday-Blitz-October-24-2023"]
[Site "Chess.com"]
[Date "2023.10.24"]
[Round "3"]
[White "Felix-Rose"]
[Black "DonJuanEGenaro"]
[Result "1-0"]
[WhiteElo "2295"]
[BlackElo "1784"]
[TimeControl "180+1"]
[EndTime "8:26:52 PDT"]
[Termination "Felix-Rose won by checkmate"]

1. e4 {[%clk 0:03:00.4]} 1... c5 {[%clk 0:02:56.3]} 2. Nf3 {[%clk 0:03:00.5]}
2... Nc6 {[%clk 0:02:56.2]} 3. d4 {[%clk 0:03:00.6]} 3... cxd4 {[%clk
0:02:55.4]} 4. Nxd4 {[%clk 0:03:01.5]} 4... Nf6 {[%clk 0:02:55.1]} 5. Nc3 {[%clk
0:03:01.9]} 5... d6 {[%clk 0:02:55]} 6. Bg5 {[%clk 0:03:00.4]} 6... Qb6 {[%clk
0:02:53.7]} 7. Bb5 {[%clk 0:02:47.5]} 7... Bd7 {[%clk 0:02:49.1]} 8. Bxf6 {[%clk
0:02:47.1]} 8... gxf6 {[%clk 0:02:43.3]} 9. Nb3 {[%clk 0:02:44.1]} 9... e6
{[%clk 0:02:36.7]} 10. Qh5 {[%clk 0:02:37.9]} 10... a6 {[%clk 0:02:27.8]} 11.
Be2 {[%clk 0:02:36.8]} 11... Ne5 {[%clk 0:02:21.4]} 12. O-O {[%clk 0:02:22.5]}
12... Ng6 {[%clk 0:02:10.8]} 13. Kh1 {[%clk 0:01:36.9]} 13... Nf4 {[%clk
0:01:54.9]} 14. Qh4 {[%clk 0:01:36.5]} 14... Nxe2 {[%clk 0:01:54]} 15. Nxe2
{[%clk 0:01:35.4]} 15... Be7 {[%clk 0:01:48.5]} 16. Qh5 {[%clk 0:01:32.4]} 16...
Bb5 {[%clk 0:01:40.9]} 17. f4 {[%clk 0:01:27.2]} 17... Rc8 {[%clk 0:01:39.4]}
18. Rfc1 {[%clk 0:01:22.2]} 18... Qe3 {[%clk 0:01:38.7]} 19. Ned4 {[%clk
0:01:07.6]} 19... Qxe4 {[%clk 0:01:17.8]} 20. Re1 {[%clk 0:01:05.3]} 20... Qg6
{[%clk 0:01:09.8]} 21. Qf3 {[%clk 0:01:00]} 21... Bc6 {[%clk 0:01:09.3]} 22.
Nxc6 {[%clk 0:00:58.7]} 22... Rxc6 {[%clk 0:01:01.7]} 23. Nd4 {[%clk 0:00:58.8]}
23... Rc4 {[%clk 0:00:54.2]} 24. f5 {[%clk 0:00:56.8]} 24... Qg5 {[%clk
0:00:39.8]} 25. Qxb7 {[%clk 0:00:41.8]} 25... Rg8 {[%clk 0:00:19]} 26. fxe6
{[%clk 0:00:33.7]} 26... Rxd4 {[%clk 0:00:13]} 27. Qc8+ {[%clk 0:00:32.1]} 27...
Bd8 {[%clk 0:00:12.1]} 28. Qd7+ {[%clk 0:00:31.9]} 28... Kf8 {[%clk 0:00:10.8]}
29. Qxf7# {[%clk 0:00:32.8]} 1-0